[Event "7th Cesme Open-A 2019"]
[Site "Cesme"]
[Date "2019.06.30"]
[Round "9"]
[White "Erdogdu, Mert"]
[Black "Tepe, Efe Can"]
[Result "1-0"]
[ECO "B51"]
[WhiteElo "2391"]
[BlackElo "2150"]
[Annotator "NA"]
[PlyCount "129"]
[EventDate "2019.06.24"]
[EventType "swiss"]
[EventCountry "TUR"]
[SourceTitle "playchess.com"]
[Source "ChessBase"]
[SourceQuality "1"]
[TimeControl "5400+30"]

1. e4 {[%emt 0:00:30]} c5 {[%emt 0:16:30]} 2. Nf3 {[%emt 0:00:00]} d6 {[%emt 0:00:30]} 3. Bb5+ {[%emt 0:00:00]} Nd7 {[%emt 0:00:30]} 4. O-O {[%emt 0:00:00]} a6 {[%emt 0:01:30]} 5. Bd3 {[%emt 0:00:00]} Ngf6 {[%emt 0:02:30]} 6. Re1 {[%emt 0:00:30]} g6 {[%emt 0:02:30]} 7. c3 {[%emt 0:00:30]} Bg7 {[%emt 0:00:30]} 8. Bc2 {[%emt 0:00:00]} O-O {[%emt 0:01:30]} 9. d4 {[%emt 0:00:00]} e5 {[%emt 0:00:30]} 10. dxe5 {[%emt 0:02:30]} dxe5 {[%emt 0:01:30]} 11. c4 {[%emt 0:00:30]} b5 {[%emt 0:11:30]} 12. Nc3 {[%emt 0:05:30]} Rb8 {[%emt 0:03:30]} 13. Qe2 {[%emt 0:03:30]} Qb6 {[%emt 0:10:30]} 14. a4 {[%emt 0:09:30]} bxc4 {[%emt 0:09:30]} 15. a5 {[%emt 0:00:30]} Qc7 {[%emt 0:00:30]} 16. Nd2 {[%emt 0:01:30]} Rd8 {[%emt 0:10:30]} 17. Nxc4 {[%emt 0:00:30]} Nf8 {[%emt 0:01:30]} 18. Bg5 {[%emt 0:05:30]} Ne6 {[%emt 0:01:30]} 19. Bxf6 {[%emt 0:00:00]} Nd4 {[%emt 0:03:48]} 20. Qd1 {[%emt 0:01:00]} Bxf6 {[%emt 0:00:19]} 21. Nd5 {[%emt 0:00:00]} Qc6 {[%emt 0:02:16]} 22. Nxe5 {[%emt 0:12:00]} Qe6 {[%emt 0:01:27]} 23. Nc4 {[%emt 0:01:30]} Rxd5 {[%emt 0:01:02]} 24. exd5 {[%emt 0:00:30]} Qxd5 {[%emt 0:04:28]} 25. Re8+ {[%emt 0:01:30]} Kg7 {[%emt 0:00:53]} 26. Nb6 {[%emt 0:04:30]} Rxb6 {[%emt 0:04:46]} 27. axb6 {[%emt 0:00:30]} Bd7 {[%emt 0:00:00]} 28. Re1 {[%emt 0:00:30]} Qb7 {[%emt 0:00:47]} 29. Bd3 {[%emt 0:02:30]} Bc6 {[%emt 0:00:21]} 30. Bxa6 {[%emt 0:05:30]} Qxb6 {[%emt 0:00:08]} 31. Bf1 {[%emt 0:01:30]} Qxb2 {[%emt 0:01:23]} 32. Qc1 {[%emt 0:01:30]} Qb7 {[%emt 0:04:58]} 33. Rb1 {[%emt 0:01:30]} Qa7 {[%emt 0:00:02]} 34. Re3 {[%emt 0:00:30]} h5 {[%emt 0:00:34]} 35. Qa3 {[%emt 0:00:30]} Qd7 {[%emt 0:02:47]} 36. Qxc5 {[%emt 0:01:30]} h4 {[%emt 0:00:18]} 37. Rd1 {[%emt 0:04:30]} h3 {[%emt 0:00:32]} 38. gxh3 {[%emt 0:08:30]} Ba8 {[%emt 0:00:06]} 39. Rxd4 {[%emt 0:02:30]} Qxd4 {[%emt 0:00:58]} 40. Qxd4 {[%emt 0:00:30]} Bxd4 {[%emt 0:00:04]} 41. Rd3 {[%emt 0:00:00]} Be5 {[%emt 0:00:26]} 42. Bg2 {[%emt 0:00:00]} Bxg2 {[%emt 0:01:09]} 43. Kxg2 {[%emt 0:00:00]} Bb8 {[%emt 0:00:30]} 44. Rd5 {[%emt 0:00:00]} Bf4 {[%emt 0:00:30]} 45. h4 {[%emt 0:00:30]} Kh6 {[%emt 0:00:00]} 46. h3 {[%emt 0:00:00]} f5 {[%emt 0:00:43]} 47. Kf3 {[%emt 0:00:00]} Bc1 {[%emt 0:00:31]} 48. Rd7 {[%emt 0:00:30]} Bb2 {[%emt 0:00:41]} 49. Rf7 {[%emt 0:01:30]} Be5 {[%emt 0:00:18]} 50. Ke3 {[%emt 0:00:30]} Bb8 {[%emt 0:00:44]} 51. f4 {[%emt 0:00:30]} Bd6 {[%emt 0:00:34]} 52. h5 {[%emt 0:00:30]} Bc5+ {[%emt 0:00:30]} 53. Kf3 {[%emt 0:00:00]} Bd4 {[%emt 0:00:10]} 54. Rd7 {[%emt 0:00:00]} Bb2 {[%emt 0:00:00]} 55. hxg6 {[%emt 0:00:30]} Kxg6 {[%emt 0:00:14]} 56. Rd2 {[%emt 0:00:30]} Bc3 {[%emt 0:00:30]} 57. Rg2+ {[%emt 0:00:30]} Kf6 {[%emt 0:00:30]} 58. Rc2 {[%emt 0:00:30]} Be1 {[%emt 0:00:30]} 59. Rc6+ {[%emt 0:00:30]} Kf7 {[%emt 0:00:46]} 60. Ke3 {[%emt 0:01:30]} Bg3 {[%emt 0:00:22]} 61. Rc1 {[%emt 0:00:00]} Kf6 {[%emt 0:00:35]} 62. Rg1 {[%emt 0:01:00]} Bh4 {[%emt 0:00:01]} 63. Rg2 {[%emt 0:00:00]} Be1 {[%emt 0:01:02]} 64. Kd4 {[%emt 0:00:00]} Ba5 {[%emt 0:00:22]} 65. h4 {[%emt 0:00:30]} 1-0

[Event "7th Cesme Open-A 2019"]
[Site "Cesme"]
[Date "2019.06.30"]
[Round "9"]
[White "Bashirli, Nail"]
[Black "Sevgi, Volkan"]
[Result "1/2-1/2"]
[ECO "B51"]
[WhiteElo "2367"]
[BlackElo "2302"]
[Annotator "NA"]
[PlyCount "119"]
[EventDate "2019.06.24"]
[EventType "swiss"]
[EventCountry "TUR"]
[SourceTitle "playchess.com"]
[Source "ChessBase"]
[SourceQuality "1"]
[TimeControl "5400+30"]

1. e4 {[%emt 0:09:30]} c5 {[%emt 0:03:30]} 2. Nf3 {[%emt 0:00:30]} Nc6 {[%emt 0:00:00]} 3. Nc3 {[%emt 0:00:30]} d6 {[%emt 0:02:00]} 4. Bb5 {[%emt 0:06:30]} e5 {[%emt 0:07:30]} 5. O-O {[%emt 0:02:30]} Nf6 {[%emt 0:03:30]} 6. a3 {[%emt 0:03:30]} Bd7 {[%emt 0:02:30]} 7. d3 {[%emt 0:01:30]} Be7 {[%emt 0:01:30]} 8. h3 {[%emt 0:04:30]} O-O {[%emt 0:03:30]} 9. Bg5 {[%emt 0:04:30]} Ne8 {[%emt 0:04:30]} 10. Bxe7 {[%emt 0:03:30]} Nxe7 {[%emt 0:00:30]} 11. Bc4 {[%emt 0:00:30]} Ng6 {[%emt 0:02:30]} 12. Ne2 {[%emt 0:03:30]} Kh8 {[%emt 0:01:30]} 13. Qd2 {[%emt 0:03:30]} f5 {[%emt 0:06:30]} 14. Qg5 {[%emt 0:06:30]} Qf6 {[%emt 0:18:30]} 15. exf5 {[%emt 0:01:30]} Bxf5 {[%emt 0:00:30]} 16. Ng3 {[%emt 0:05:30]} Nf4 {[%emt 0:03:30]} 17. Rae1 $11 {[%emt 0:05:30]} ({And not} 17. Qxf5 Ne2+ 18. Kh2 Nxg3 $17) 17... Bg6 {[%emt 0:03:30]} 18. Qxf6 {[%emt 0:00:30]} gxf6 {[%emt 0:00:30]} 19. Nh4 {[%emt 0:00:30]} d5 {[%emt 0:00:30]} 20. Nxg6+ {[%emt 0:00:30]} hxg6 {[%emt 0:00:30]} 21. Ba2 {[%emt 0:00:30]} Nc7 {[%emt 0:06:30]} 22. Ne2 {[%emt 0:00:30]} Nxe2+ {[%emt 0:00:30]} 23. Rxe2 {[%emt 0:00:30]} Ne6 {[%emt 0:00:00]} 24. c3 {[%emt 0:00:30]} Nf4 {[%emt 0:16:04]} 25. Rd2 {[%emt 0:00:30]} Rad8 {[%emt 0:00:37]} 26. h4 {[%emt 0:04:30]} d4 {[%emt 0:04:33]} 27. c4 {[%emt 0:01:30]} Rfe8 {[%emt 0:05:11]} 28. g3 {[%emt 0:00:30]} Ne6 {[%emt 0:00:47]} 29. Bb3 {[%emt 0:00:00]} Kg7 {[%emt 0:00:06]} 30. Bd1 {[%emt 0:00:00]} f5 {[%emt 0:00:25]} 31. Bf3 {[%emt 0:00:30]} g5 {[%emt 0:00:24]} 32. h5 {[%emt 0:01:30]} g4 {[%emt 0:01:10]} 33. Bxb7 {[%emt 0:01:30]} Ng5 {[%emt 0:00:01]} 34. Kg2 {[%emt 0:01:30]} e4 {[%emt 0:00:57]} 35. dxe4 {[%emt 0:00:30]} fxe4 {[%emt 0:00:23]} 36. b4 {[%emt 0:00:30]} cxb4 {[%emt 0:02:24]} 37. axb4 {[%emt 0:00:30]} d3 {[%emt 0:00:18]} 38. c5 {[%emt 0:00:30]} Nf3 {[%emt 0:00:45]} 39. Rdd1 {[%emt 0:01:30]} Re7 {[%emt 0:00:44]} 40. c6 {[%emt 0:02:30]} d2 {[%emt 0:00:19]} 41. c7 {[%emt 0:03:30]} Rxc7 {[%emt 0:00:30]} 42. Bxe4 {[%emt 0:00:30]} Rc3 {[%emt 0:00:00]} 43. Bxf3 {[%emt 0:02:30]} gxf3+ {[%emt 0:00:00]} 44. Kh3 {[%emt 0:00:30]} Rcd3 {[%emt 0:00:00]} 45. g4 {[%emt 0:02:05]} Kh6 {[%emt 0:00:31]} 46. Kh4 {[%emt 0:01:09]} R8d4 {[%emt 0:00:12]} 47. b5 {[%emt 0:00:13]} Rd5 {[%emt 0:00:24]} 48. Rg1 {[%emt 0:09:23]} R5d4 {[%emt 0:00:32]} 49. Rg3 {[%emt 0:02:02]} Re4 {[%emt 0:00:14]} 50. Rgg1 {[%emt 0:00:04]} Red4 {[%emt 0:00:00]} 51. Kg3 {[%emt 0:00:39]} Kg5 {[%emt 0:00:59]} 52. Kh3 {[%emt 0:00:04]} Rd6 {[%emt 0:00:00]} 53. Rh1 {[%emt 0:01:20]} R6d4 {[%emt 0:01:14]} 54. Rhg1 {[%emt 0:03:45]} Rd6 {[%emt 0:00:06]} 55. Rh1 {[%emt 0:01:50]} R6d4 {[%emt 0:00:07]} 56. h6 {[%emt 0:00:31]} Kxh6 {[%emt 0:00:30]} 57. Kg3+ {[%emt 0:00:30]} Kg6 {[%emt 0:00:30]} 58. Rh8 {[%emt 0:00:30]} Re4 {[%emt 0:00:30]} 59. Rhh1 {[%emt 0:01:43]} Red4 {[%emt 0:00:00]} 60. Rh8 {[%emt 0:00:51]} 1/2-1/2

[Event "7th Cesme Open-A 2019"]
[Site "Cesme"]
[Date "2019.06.30"]
[Round "9"]
[White "Tuncer, Tuna"]
[Black "Eminov, Orkhan"]
[Result "1-0"]
[ECO "B27"]
[WhiteElo "2365"]
[BlackElo "2314"]
[Annotator "NA"]
[PlyCount "89"]
[EventDate "2019.06.24"]
[EventType "swiss"]
[EventCountry "TUR"]
[SourceTitle "playchess.com"]
[Source "ChessBase"]
[SourceQuality "1"]
[TimeControl "5400+30"]

1. e4 {[%emt 0:00:30]} c5 {[%emt 0:12:30]} 2. Nf3 {[%emt 0:00:30]} g6 {[%emt 0:00:30]} 3. d4 {[%emt 0:00:00]} cxd4 {[%emt 0:01:30]} 4. Qxd4 {[%emt 0:00:00]} Nf6 {[%emt 0:00:00]} 5. Nc3 {[%emt 0:00:30]} Nc6 {[%emt 0:00:00]} 6. Qa4 {[%emt 0:00:30]} d6 {[%emt 0:00:30]} 7. e5 {[%emt 0:00:00]} dxe5 {[%emt 0:00:30]} 8. Nxe5 {[%emt 0:00:00]} Bd7 {[%emt 0:00:30] B27: Sicilian: 2 Nf3, unusual Black 2nd moves} 9. Nxd7 {[%emt 0:00:30]} Qxd7 {[%emt 0:03:30]} 10. Be3 {[%emt 0:00:00]} Bg7 {[%emt 0:03:30]} 11. Rd1 {[%emt 0:00:00]} Qc8 {[%emt 0:05:30]} 12. Be2 {[%emt 0:00:30]} O-O {[%emt 0:00:30]} 13. O-O {[%emt 0:00:00]} a6 {[%emt 0:03:30]} 14. Rfe1 {[%emt 0:01:00]} b5 {[%emt 0:11:30]} 15. Qh4 {[%emt 0:00:00]} Qf5 {[%emt 0:15:30] [#]} 16. g4 $146 {[%emt 0:00:00]} ({Predecessor:} 16. Bf3) 16... Qc8 {[%emt 0:02:30]} 17. g5 {[%emt 0:00:30]} Nd7 {[%emt 0:05:30]} 18. Bf3 {[%emt 0:00:30]} Nde5 {[%emt 0:04:30]} 19. Bg2 {[%emt 0:00:30]} Rb8 {[%emt 0:08:37]} 20. Qe4 {[%emt 0:15:30]} b4 {[%emt 0:03:48]} 21. Na4 {[%emt 0:11:30]} Na5 {[%emt 0:02:04]} 22. Bd4 {[%emt 0:00:30]} ({White should play} 22. b3 $18) 22... Nac4 $18 {[%emt 0:02:21]} (22... Rb5 $16) 23. b3 {[%emt 0:07:30]} Nd6 {[%emt 0:00:18]} 24. Qe2 {[%emt 0:00:30]} Rb5 {[%emt 0:03:34]} 25. c4 {[%emt 0:04:30]} bxc3 {[%emt 0:03:51]} 26. Nxc3 {[%emt 0:00:30]} Rc5 {[%emt 0:03:27]} 27. Bxc5 {[%emt 0:01:30]} Qxc5 {[%emt 0:00:04]} 28. Ne4 {[%emt 0:00:30]} Nxe4 {[%emt 0:01:32]} 29. Qxe4 {[%emt 0:00:00]} Qb6 {[%emt 0:01:17]} 30. Rd5 {[%emt 0:04:00]} f6 {[%emt 0:00:49]} 31. gxf6 {[%emt 0:01:30]} exf6 {[%emt 0:00:14]} 32. Qd4 {[%emt 0:04:30]} Qxd4 {[%emt 0:00:42]} 33. Rxd4 {[%emt 0:00:30]} Rc8 {[%emt 0:00:00]} 34. f4 {[%emt 0:02:30]} Ng4 {[%emt 0:00:00]} 35. Bd5+ {[%emt 0:03:30]} Kh8 {[%emt 0:00:00]} 36. Bb7 {[%emt 0:01:30]} Rb8 {[%emt 0:00:53]} 37. Rd7 {[%emt 0:01:30]} Bf8 {[%emt 0:00:33]} 38. h3 {[%emt 0:03:30]} Bc5+ {[%emt 0:00:16]} 39. Kg2 {[%emt 0:00:30]} Ne3+ {[%emt 0:00:24]} 40. Kf3 {[%emt 0:00:00]} Nf5 {[%emt 0:00:09]} 41. Rc1 {[%emt 0:01:00]} Nh4+ {[%emt 0:00:14]} 42. Ke4 {[%emt 0:07:30]} f5+ {[%emt 0:02:07]} 43. Kd3 {[%emt 0:00:30]} Bb6 {[%emt 0:00:43]} 44. Rc6 {[%emt 0:00:30]} Bd8 {[%emt 0:00:00]} 45. Rxa6 {[%emt 0:00:30]} 1-0

[Event "7th Cesme Open-A 2019"]
[Site "Cesme"]
[Date "2019.06.30"]
[Round "9"]
[White "Chighladze, Iveri"]
[Black "Koksal, Ege"]
[Result "1-0"]
[ECO "D02"]
[WhiteElo "2317"]
[BlackElo "2363"]
[Annotator "NA"]
[PlyCount "197"]
[EventDate "2019.06.24"]
[EventType "swiss"]
[EventCountry "TUR"]
[SourceTitle "playchess.com"]
[Source "ChessBase"]
[SourceQuality "1"]
[TimeControl "5400+30"]

1. Nf3 {[%emt 0:04:30]} d5 {[%emt 0:09:30]} 2. g3 {[%emt 0:00:30]} Nf6 {[%emt 0:00:30]} 3. Bg2 {[%emt 0:00:00]} c6 {[%emt 0:00:00]} 4. O-O {[%emt 0:00:00]} Bg4 {[%emt 0:00:00]} 5. d4 {[%emt 0:00:30]} Nbd7 {[%emt 0:00:30]} 6. Nbd2 {[%emt 0:00:30]} e6 {[%emt 0:02:30]} 7. Re1 {[%emt 0:00:00]} Be7 {[%emt 0:00:30]} 8. e4 {[%emt 0:00:00]} O-O {[%emt 0:00:30]} 9. c3 {[%emt 0:00:30]} Rc8 {[%emt 0:01:30]} 10. a4 {[%emt 0:07:30] D02: 1 d4 d5 2 Nf3 sidelines, including 2...Nf6 3 g3 and 2...Nf6 3 Bf4} (10. h3 Bh5 11. e5 Ne8 12. Nf1 c5 13. g4 Bg6 14. Ng3 b5 {½-½ (14) Mamedov,R (2639)-Akobian,V (2632) Arlington 2015}) 10... Bh5 {[%emt 0:02:30]} 11. a5 $146 {[%emt 0:04:30]} ({Predecessor:} 11. exd5 cxd5 12. a5 b5 13. axb6 axb6 14. Qb3 Qc7 15. Nb1 Ra8 16. Bf4 Bd6 17. Bxd6 Qxd6 18. Rxa8 Rxa8 {1-0 (51) Czebe,A (2479)-Farago,I (2504) Hungary 2001}) 11... Bg6 {[%emt 0:02:30]} 12. e5 {[%emt 0:05:30]} Ne8 {[%emt 0:05:30]} 13. Qb3 {[%emt 0:03:30]} b6 {[%emt 0:06:30]} 14. Qa2 {[%emt 0:26:30]} Nc7 {[%emt 0:02:30]} 15. b3 {[%emt 0:03:30]} c5 {[%emt 0:11:30]} 16. Bb2 {[%emt 0:00:30]} Nb5 {[%emt 0:03:30]} 17. c4 {[%emt 0:03:30]} dxc4 {[%emt 0:00:30]} 18. Nxc4 {[%emt 0:01:30]} cxd4 {[%emt 0:02:30]} 19. Nxd4 {[%emt 0:04:30]} Nxd4 {[%emt 0:03:30]} 20. Bxd4 $11 {[%emt 0:00:30]} Qc7 {[%emt 0:05:30]} 21. axb6 {[%emt 0:09:30]} axb6 {[%emt 0:07:30]} 22. Red1 {[%emt 0:01:30]} Bh5 {[%emt 0:08:30]} 23. Rd3 {[%emt 0:02:59]} Bg6 {[%emt 0:01:30]} 24. Rdd1 {[%emt 0:01:14]} Bh5 {[%emt 0:00:30]} 25. Rd3 {[%emt 0:02:39]} Bg6 {[%emt 0:00:30]} 26. Re3 {[%emt 0:00:13]} Nc5 {[%emt 0:01:30]} 27. Rc3 {[%emt 0:05:07]} Rfd8 {[%emt 0:00:30]} 28. Be3 {[%emt 0:00:29]} h6 {[%emt 0:10:12]} 29. h4 {[%emt 0:00:08]} Kh8 {[%emt 0:00:53]} 30. Kh2 {[%emt 0:00:34]} Kg8 {[%emt 0:00:01]} 31. Qa7 {[%emt 0:04:56]} Nd7 {[%emt 0:02:40]} 32. Bd4 {[%emt 0:04:53]} b5 {[%emt 0:07:13]} 33. Qxc7 {[%emt 0:02:39]} Rxc7 {[%emt 0:00:01]} 34. Na5 {[%emt 0:00:24]} Rxc3 {[%emt 0:02:10]} 35. Bxc3 {[%emt 0:00:01]} Bc5 {[%emt 0:00:00]} 36. Nc6 {[%emt 0:01:46]} Re8 {[%emt 0:00:00]} 37. f4 {[%emt 0:00:10]} Bf2 {[%emt 0:01:42]} 38. Ra2 {[%emt 0:00:50]} Be3 {[%emt 0:00:01]} 39. Bb4 {[%emt 0:00:20]} Bc5 {[%emt 0:00:42]} 40. Bc3 {[%emt 0:00:22]} Bf8 {[%emt 0:00:37]} 41. g4 {[%emt 0:00:35]} h5 {[%emt 0:00:57]} 42. g5 {[%emt 0:00:01]} Nc5 {[%emt 0:00:00]} 43. b4 {[%emt 0:01:24]} Nd3 {[%emt 0:00:00]} 44. Kg3 {[%emt 0:00:00]} Nc1 {[%emt 0:01:10]} 45. Rd2 {[%emt 0:00:01]} Rc8 {[%emt 0:00:23]} 46. Kf2 {[%emt 0:01:50]} Kh7 {[%emt 0:00:01]} 47. Ke3 {[%emt 0:00:00]} Ra8 {[%emt 0:00:35]} 48. Bb2 {[%emt 0:00:42]} Na2 {[%emt 0:00:01]} 49. Ne7 {[%emt 0:00:17]} Ra6 {[%emt 0:01:10]} 50. Nxg6 {[%emt 0:00:30]} fxg6 {[%emt 0:00:16]} 51. Rd8 {[%emt 0:00:05]} Bxb4 {[%emt 0:00:12]} 52. Rb8 {[%emt 0:00:23]} Bc5+ {[%emt 0:01:13]} 53. Kd2 {[%emt 0:00:30]} b4 {[%emt 0:00:30]} 54. Bf1 {[%emt 0:00:30]} Rc6 {[%emt 0:00:30]} 55. Bb5 {[%emt 0:00:30]} Rc7 {[%emt 0:00:30]} 56. Re8 {[%emt 0:01:11]} Nc3 {[%emt 0:00:07]} 57. Bc4 {[%emt 0:00:00]} Nd5 {[%emt 0:00:27]} 58. Bxd5 {[%emt 0:00:39]} exd5 {[%emt 0:00:30]} 59. Rd8 {[%emt 0:00:30]} b3 {[%emt 0:00:56]} 60. Rxd5 {[%emt 0:01:02]} Bb4+ {[%emt 0:00:00]} 61. Kd3 {[%emt 0:00:00]} Rc2 {[%emt 0:00:41]} 62. Rb5 {[%emt 0:00:00]} Rxb2 {[%emt 0:00:53]} 63. Rxb4 {[%emt 0:00:00]} Kg8 {[%emt 0:00:22]} 64. Rb8+ {[%emt 0:00:59]} Kf7 {[%emt 0:00:30]} 65. Rb7+ {[%emt 0:00:03]} Kf8 {[%emt 0:00:02]} 66. Ke4 {[%emt 0:00:20]} Rb1 {[%emt 0:01:38]} 67. Kd5 {[%emt 0:00:15]} b2 {[%emt 0:00:36]} 68. Ke6 {[%emt 0:00:30]} Kg8 {[%emt 0:00:00]} 69. Ke7 {[%emt 0:01:27]} Rf1 {[%emt 0:00:56]} 70. Rb8+ {[%emt 0:00:49]} Kh7 {[%emt 0:00:30]} 71. Rxb2 {[%emt 0:00:30]} Rxf4 {[%emt 0:00:00]} 72. e6 {[%emt 0:00:13]} Kg8 {[%emt 0:00:09]} 73. Rb8+ {[%emt 0:00:34]} Kh7 {[%emt 0:00:01]} 74. Ke8 {[%emt 0:00:21]} Re4 {[%emt 0:00:55]} 75. Rb6 {[%emt 0:00:05]} Kg8 {[%emt 0:00:20]} 76. Kd7 {[%emt 0:00:40]} Re1 {[%emt 0:00:42]} 77. Rb8+ {[%emt 0:00:35]} Kh7 {[%emt 0:00:01]} 78. Rb4 {[%emt 0:00:25]} Kg8 {[%emt 0:00:19]} 79. Ke7 {[%emt 0:01:13]} Re2 {[%emt 0:01:08]} 80. Rd4 {[%emt 0:00:19]} Ra2 {[%emt 0:00:48]} 81. Rd8+ {[%emt 0:00:54]} Kh7 {[%emt 0:00:01]} 82. Rd7 {[%emt 0:00:02]} Kg8 {[%emt 0:01:11]} 83. Ke8 {[%emt 0:00:29]} Ra8+ {[%emt 0:00:50]} 84. Rd8 {[%emt 0:00:14]} Ra7 {[%emt 0:00:28]} 85. e7 {[%emt 0:00:27]} Kh7 {[%emt 0:00:42]} 86. Rd7 {[%emt 0:00:22]} Ra1 {[%emt 0:00:29]} 87. Rc7 {[%emt 0:00:59]} Rd1 {[%emt 0:00:52]} 88. Rd7 {[%emt 0:00:30]} Ra1 {[%emt 0:00:00]} 89. Kd8 {[%emt 0:00:00]} Ra8+ {[%emt 0:00:09]} 90. Kc7 {[%emt 0:00:06]} Ra7+ {[%emt 0:01:11]} 91. Kd6 {[%emt 0:00:07]} Ra6+ {[%emt 0:00:31]} 92. Kd5 {[%emt 0:00:09]} Ra8 {[%emt 0:00:48]} 93. Ke6 {[%emt 0:00:14]} Kg8 {[%emt 0:00:01]} 94. Rd8+ {[%emt 0:01:03]} Kh7 {[%emt 0:00:02]} 95. Kf7 {[%emt 0:00:00]} Ra7 {[%emt 0:01:25]} 96. Rd6 {[%emt 0:00:02]} Rb7 {[%emt 0:00:28]} 97. Kf8 {[%emt 0:00:10]} Rb4 {[%emt 0:00:06]} 98. e8=Q {[%emt 0:00:41]} Rf4+ {[%emt 0:00:05]} 99. Rf6 {[%emt 0:00:00]} 1-0

[Event "7th Cesme Open-A 2019"]
[Site "Cesme"]
[Date "2019.06.30"]
[Round "9"]
[White "Kucuksari, Kaan"]
[Black "Yilmaz, Goktan"]
[Result "1-0"]
[ECO "E11"]
[WhiteElo "2299"]
[BlackElo "2155"]
[Annotator "NA"]
[PlyCount "71"]
[EventDate "2019.06.24"]
[EventType "swiss"]
[EventCountry "TUR"]
[SourceTitle "playchess.com"]
[Source "ChessBase"]
[SourceQuality "1"]
[TimeControl "5400+30"]

1. d4 {[%emt 0:00:30]} d5 {[%emt 0:00:30]} 2. Nf3 {[%emt 0:00:00]} Nf6 {[%emt 0:00:30]} 3. c4 {[%emt 0:00:00]} e6 {[%emt 0:00:00]} 4. g3 {[%emt 0:00:00]} Bb4+ {[%emt 0:00:00]} 5. Bd2 {[%emt 0:00:00]} Be7 {[%emt 0:00:30]} 6. Bg2 {[%emt 0:00:00]} O-O {[%emt 0:00:30]} 7. O-O {[%emt 0:00:00]} c6 {[%emt 0:00:00]} 8. Qc2 {[%emt 0:00:30]} Nbd7 {[%emt 0:00:00]} 9. Rd1 {[%emt 0:00:30]} Ne4 {[%emt 0:00:00]} 10. Nc3 {[%emt 0:00:30]} f5 {[%emt 0:06:00]} 11. Nxe4 {[%emt 0:00:30]} fxe4 {[%emt 0:01:30]} 12. Ne1 {[%emt 0:00:30]} Nf6 {[%emt 0:14:30]} 13. f3 {[%emt 0:03:30]} Bd6 {[%emt 0:03:30]} 14. fxe4 {[%emt 0:08:30]} dxe4 {[%emt 0:09:30]} 15. Bxe4 {[%emt 0:03:30]} Bxg3 {[%emt 0:13:30]} 16. Nf3 {[%emt 0:05:30]} Bd6 {[%emt 0:01:30]} 17. Bg5 {[%emt 0:01:30]} h6 {[%emt 0:01:30]} 18. Bh4 {[%emt 0:04:30]} Qc7 {[%emt 0:04:30]} 19. c5 {[%emt 0:12:30]} Bf4 {[%emt 0:01:30]} 20. Bxf6 {[%emt 0:00:30]} gxf6 {[%emt 0:10:30]} 21. Kh1 {[%emt 0:07:30]} Bd7 {[%emt 0:01:30]} 22. Rg1+ {[%emt 0:13:30]} Kh8 {[%emt 0:00:30]} 23. Qc3 {[%emt 0:00:30]} Qd8 {[%emt 0:29:30]} 24. e3 {[%emt 0:05:30]} f5 {[%emt 0:00:00]} 25. exf4 {[%emt 0:09:30]} fxe4 {[%emt 0:00:00]} 26. Ne5 {[%emt 0:00:00]} Be8 {[%emt 0:00:00]} 27. Qh3 {[%emt 0:03:00]} Qf6 {[%emt 0:00:00]} 28. Ng4 {[%emt 0:01:39]} Qg6 {[%emt 0:00:00]} 29. Ne5 {[%emt 0:07:30]} Qf6 {[%emt 0:00:00]} 30. Rg4 {[%emt 0:05:37]} Kh7 {[%emt 0:00:00]} 31. Rag1 {[%emt 0:01:40]} Rd8 {[%emt 0:00:00]} 32. Rg5 {[%emt 0:04:48]} Qxf4 {[%emt 0:00:00]} 33. Rg7+ {[%emt 0:01:11]} Kh8 {[%emt 0:00:00]} 34. Qg2 {[%emt 0:00:00]} Qf6 {[%emt 0:00:00]} 35. Rg8+ {[%emt 0:00:12]} Kh7 {[%emt 0:00:00]} 36. Qg7+ {[%emt 0:00:00]} 1-0

[Event "7th Cesme Open-A 2019"]
[Site "Cesme"]
[Date "2019.06.30"]
[Round "9"]
[White "Dogan, Nazmi Can"]
[Black "Annageldyev, Orazly"]
[Result "0-1"]
[ECO "B42"]
[WhiteElo "2276"]
[BlackElo "2353"]
[Annotator "NA"]
[PlyCount "66"]
[EventDate "2019.06.24"]
[EventType "swiss"]
[EventCountry "TUR"]
[SourceTitle "playchess.com"]
[Source "ChessBase"]
[SourceQuality "1"]
[TimeControl "5400+30"]

1. e4 {[%emt 0:04:30]} c5 {[%emt 0:00:30]} 2. Nf3 {[%emt 0:00:30]} e6 {[%emt 0:00:30]} 3. d4 {[%emt 0:00:30]} cxd4 {[%emt 0:00:30]} 4. Nxd4 {[%emt 0:00:00]} a6 {[%emt 0:00:00]} 5. Bd3 {[%emt 0:00:00]} d6 {[%emt 0:01:00]} 6. O-O {[%emt 0:01:30]} Nf6 {[%emt 0:00:30]} 7. Qe2 {[%emt 0:03:30]} Qb6 {[%emt 0:04:30]} 8. Be3 {[%emt 0:04:30]} Qc7 {[%emt 0:18:30]} 9. f4 {[%emt 0:00:30]} Be7 {[%emt 0:00:30]} 10. c4 {[%emt 0:09:30]} Nc6 {[%emt 0:07:30]} 11. Nxc6 {[%emt 0:04:30]} bxc6 {[%emt 0:00:00]} 12. c5 {[%emt 0:03:30]} d5 {[%emt 0:02:00]} 13. Nd2 {[%emt 0:21:30]} a5 {[%emt 0:01:30]} 14. Rac1 {[%emt 0:12:30]} Qa7 $14 {[%emt 0:17:30]} 15. Bd4 {[%emt 0:09:30]} Ba6 {[%emt 0:04:30]} 16. e5 {[%emt 0:07:29]} Bxd3 {[%emt 0:02:30]} 17. Qxd3 {[%emt 0:00:04]} Nd7 {[%emt 0:00:30]} 18. f5 {[%emt 0:00:54]} Rb8 {[%emt 0:09:30]} 19. fxe6 {[%emt 0:03:51]} fxe6 {[%emt 0:00:00]} 20. Qf3 {[%emt 0:01:21]} Rf8 {[%emt 0:03:00]} 21. Qh5+ {[%emt 0:00:13]} Kd8 {[%emt 0:00:30]} 22. Qxh7 {[%emt 0:05:17]} Rxf1+ {[%emt 0:00:30]} 23. Nxf1 {[%emt 0:00:53]} Rb4 {[%emt 0:03:30]} 24. Qg8+ {[%emt 0:00:06]} Nf8 {[%emt 0:01:30]} 25. Bf2 {[%emt 0:00:12]} Rxb2 {[%emt 0:01:30]} 26. Rc3 {[%emt 0:01:12]} Rxf2 {[%emt 0:06:48]} 27. Kxf2 {[%emt 0:00:02]} Bxc5+ {[%emt 0:01:07]} 28. Kg3 {[%emt 0:01:47]} Qe7 {[%emt 0:00:55]} 29. h4 {[%emt 0:00:19]} Bd4 {[%emt 0:00:56]} 30. Rxc6 {[%emt 0:01:17]} Bxe5+ {[%emt 0:00:10]} 31. Kh3 {[%emt 0:00:06]} Qf6 {[%emt 0:01:59]} 32. g3 {[%emt 0:03:15]} Qxf1+ {[%emt 0:01:00]} 33. Kh2 {[%emt 0:00:00]} Qf2+ {[%emt 0:00:24]} 0-1